fUSD/lending_fUSD_20250616
["ID","MTS","AMOUNT","RATE_DAILY","PERIOD"]
[366090667,1750057847954,-151.0,0.00016601,2]
[366090669,1750057847964,-151.0,0.00016601,2]
[366090671,1750057847974,-151.0,0.00016601,2]
[366090674,1750057847984,-553.70555967,0.00016601,2]
[366090676,1750057847995,-500.0,0.00016601,2]
[366090678,1750057848004,-535.87659919,0.00016601,2]
[366090680,1750057848015,-206.81,0.00016601,2]
[366090682,1750057848024,-300.0,0.00016601,2]
[366090684,1750057848034,-300.0,0.00016601,2]
[366090686,1750057848045,-151.0,0.00016602,2]
[366090688,1750057848056,-151.0,0.00016602,2]
[366090690,1750057848067,-151.0,0.00016602,2]
[366090692,1750057848077,-151.0,0.00016602,2]
[366090694,1750057848088,-151.0,0.00016602,2]
[366090696,1750057848100,-151.0,0.00016602,2]
[366090697,1750057848112,-151.0,0.00016602,2]
[366090699,1750057848123,-151.0,0.00016602,2]
[366090701,1750057848133,-151.0,0.00016602,2]
[366090703,1750057848145,-151.0,0.00016602,2]
[366090704,1750057848155,-151.0,0.00016602,2]
[366090705,1750057848166,-151.0,0.00016602,2]
[366090706,1750057848177,-151.0,0.00016602,2]
[366090707,1750057848188,-202.263444,0.00016602,2]
[366090708,1750057848199,-260.458498,0.00016602,2]
[366090709,1750057848215,-260.458498,0.00016602,2]
[366090710,1750057848226,-260.458498,0.00016602,2]
[366090711,1750057848237,-260.458498,0.00016602,2]
[366090712,1750057848247,-260.458498,0.00016602,2]
[366090713,1750057848258,-260.458498,0.00016602,2]
[366090714,1750057848268,-260.458498,0.00016602,2]
[366090715,1750057848279,-260.458498,0.00016602,2]
[366090716,1750057848291,-260.458498,0.00016602,2]
[366090717,1750057848302,-260.458491,0.00016602,2]
[366090718,1750057848313,-1008.113559,0.00016602,2]
[366090719,1750057848324,-1008.113559,0.00016602,2]
[366090720,1750057848334,-1008.113559,0.00016602,2]
[366090721,1750057848344,-1008.113559,0.00016602,2]
[366090722,1750057848355,-1008.113559,0.00016602,2]
[366090723,1750057848365,-1008.113559,0.00016602,2]
[366090724,1750057848376,-1008.113559,0.00016602,2]
[366090725,1750057848387,-1008.113559,0.00016602,2]
[366090726,1750057848398,-1008.113559,0.00016602,2]
[366090727,1750057848409,-1008.113559,0.00016602,2]
[366090728,1750057848420,-1008.113559,0.00016602,2]
[366090729,1750057848430,-1008.113559,0.00016602,2]
[366090730,1750057848441,-151.0,0.00016602,2]
[366090731,1750057848452,-1008.113559,0.00016602,2]
[366090732,1750057848462,-151.0,0.00016602,2]
[366090733,1750057848473,-1008.113567,0.00016602,2]
[366090734,1750057848484,-151.0,0.00016602,2]
[366090735,1750057848494,-151.0,0.00016602,2]
[366090736,1750057848505,-151.0,0.00016602,2]
[366090737,1750057848516,-151.0,0.00016602,2]
[366090738,1750057848526,-151.0,0.00016602,2]
[366090739,1750057848536,-151.0,0.00016602,2]
[366090740,1750057848548,-151.0,0.00016602,2]
[366090741,1750057848558,-151.0,0.00016602,2]
[366090742,1750057848569,-151.0,0.00016602,2]
[366090743,1750057848579,-151.0,0.00016602,2]
[366090744,1750057848589,-151.0,0.00016602,2]
[366090745,1750057848603,-151.0,0.00016602,2]
[366090746,1750057848614,-151.0,0.00016602,2]
[366090747,1750057848624,-168.797331,0.00016602,2]
[366090748,1750057848635,-490.0,0.00016602,2]
[366090749,1750057848646,-490.0,0.00016602,2]
[366090750,1750057848669,-490.0,0.00016602,2]
[366090751,1750057848682,-614.74,0.00016602,2]
[366090752,1750057848694,-871.84,0.00016602,2]
[366090753,1750057848705,-490.0,0.00016602,2]
[366090754,1750057848715,-490.0,0.00016602,2]
[366090755,1750057848726,-490.0,0.00016602,2]
[366090756,1750057848737,-490.0,0.00016602,2]
[366090757,1750057848747,-151.0,0.00016602,2]
[366090758,1750057848758,-607.27,0.00016602,2]
[366090759,1750057848769,-545.83,0.00016602,2]
[366090760,1750057848779,-151.0,0.00016602,2]
[366090761,1750057848791,-151.0,0.00016602,2]
[366090762,1750057848801,-490.0,0.00016602,2]
[366090763,1750057848812,-151.0,0.00016602,2]
[366090764,1750057848822,-151.0,0.00016602,2]
[366090765,1750057848834,-490.69,0.00016602,2]
[366090766,1750057848844,-490.0,0.00016602,2]
[366090767,1750057848855,-715.6,0.00016602,2]
[366090768,1750057848866,-1189.4,0.00016602,2]
[366090769,1750057848876,-404.585506,0.00016602,2]
[366090770,1750057848887,-151.0,0.00016602,2]
[366090771,1750057848898,-151.0,0.00016602,2]
[366090772,1750057848907,-491.17,0.00016602,2]
[366090773,1750057848918,-404.585506,0.00016602,2]
[366090774,1750057848928,-562.3,0.00016602,2]
[366090775,1750057848939,-151.0,0.00016602,2]
[366090776,1750057848950,-305.374287,0.00016602,2]
[366090777,1750057848961,-604.39,0.00016602,2]
[366090778,1750057848972,-305.374287,0.00016602,2]
[366090779,1750057848982,-490.0,0.00016602,2]
[366090780,1750057848992,-151.0,0.00016602,2]
[366090781,1750057849003,-719.19,0.00016602,2]
[366090782,1750057849013,-151.0,0.00016602,2]
[366090783,1750057849023,-151.0,0.00016602,2]
[366090784,1750057849034,-151.0,0.00016602,2]
[366090785,1750057849044,-151.0,0.00016602,2]
[366090786,1750057849054,-1332.41,0.00016602,2]
[366090787,1750057849064,-151.0,0.00016602,2]
[366090788,1750057849074,-490.0,0.00016602,2]
[366090789,1750057849084,-490.0,0.00016602,2]
[366090790,1750057849100,-870.8,0.00016602,2]
[366090791,1750057849111,-151.0,0.00016602,2]
[366090792,1750057849122,-490.0,0.00016602,2]
[366090793,1750057849134,-490.0,0.00016602,2]
[366090794,1750057849144,-490.0,0.00016602,2]
[366090795,1750057849154,-509.03,0.00016602,2]
[366090796,1750057849164,-562.01,0.00016602,2]
[366090797,1750057849175,-490.0,0.00016602,2]
[366090798,1750057849185,-490.0,0.00016602,2]
[366090799,1750057849195,-490.0,0.00016602,2]
[366090800,1750057849206,-419.20470554,0.00016602,2]
[366090801,1750057849216,-490.0,0.00016602,2]
[366090802,1750057849227,-490.0,0.00016602,2]
[366090803,1750057849237,-151.0,0.00016602,2]
[366090804,1750057849248,-490.0,0.00016602,2]
[366090805,1750057849258,-151.0,0.00016602,2]
[366090806,1750057849269,-490.0,0.00016602,2]
[366090807,1750057849523,-490.0,0.00016602,2]
[366090808,1750057849534,-1534.97,0.00016602,2]
[366090809,1750057849545,-189.41704983,0.00016602,2]
[366090810,1750057849555,-490.0,0.00016602,2]
[366090811,1750057849565,-490.0,0.00016602,2]
[366090812,1750057849574,-151.0,0.00016602,2]
[366090813,1750057849585,-490.0,0.00016602,2]
[366090814,1750057849594,-151.0,0.00016602,2]
[366090815,1750057849606,-151.0,0.00016602,2]
[366090816,1750057849616,-490.0,0.00016602,2]
[366090817,1750057849626,-490.0,0.00016602,2]
[366090818,1750057849635,-548.24,0.00016602,2]
[366090819,1750057849646,-490.0,0.00016602,2]
[366090820,1750057849656,-151.0,0.00016602,2]
[366090821,1750057849666,-490.0,0.00016602,2]
[366090822,1750057849675,-490.0,0.00016602,2]
[366090823,1750057849685,-246.61,0.00016602,2]
[366090824,1750057849695,-490.0,0.00016602,2]
[366090825,1750057849705,-1539.6,0.00016602,2]
[366090826,1750057849715,-712.33,0.00016602,2]
[366090827,1750057849724,-531.26,0.00016602,2]
[366090828,1750057849734,-151.0,0.00016602,2]
[366090829,1750057849743,-606.91,0.00016602,2]
[366090830,1750057849752,-151.0,0.00016602,2]
[366090831,1750057849761,-151.0,0.00016602,2]
[366090832,1750057849772,-525.99,0.00016602,2]
[366090833,1750057849781,-1096.45,0.00016602,2]
[366090834,1750057849791,-698.24,0.00016602,2]
[366090835,1750057849800,-151.0,0.00016602,2]
[366090836,1750057849810,-490.0,0.00016602,2]
[366090837,1750057849819,-490.0,0.00016602,2]
[366090838,1750057849828,-490.0,0.00016602,2]
[366090839,1750057849838,-1267.135415,0.00016602,2]
[366090840,1750057849847,-274.11030691,0.00016602,2]
[366090841,1750057849857,-490.0,0.00016602,2]
[366090842,1750057849868,-518.26,0.00016602,2]
[366090843,1750057849877,-792.36,0.00016602,2]
[366090844,1750057849886,-502.62,0.00016602,2]
[366090845,1750057849896,-490.0,0.00016602,2]
[366090846,1750057849906,-490.0,0.00016602,2]
[366090847,1750057849915,-490.0,0.00016602,2]
[366090848,1750057849924,-566.37,0.00016602,2]
[366090849,1750057849934,-490.0,0.00016602,2]
[366090850,1750057849943,-575.79,0.00016602,2]
[366090851,1750057849953,-938.27,0.00016602,2]
[366090852,1750057849962,-490.0,0.00016602,2]
[366090853,1750057849971,-151.0,0.00016602,2]
[366090854,1750057849980,-151.0,0.00016602,2]
[366090855,1750057849989,-1201.68,0.00016602,2]
[366090856,1750057849999,-304.0,0.00016602,2]
[366090857,1750057850008,-490.0,0.00016602,2]
[366090858,1750057850017,-490.0,0.00016602,2]
[366090859,1750057850026,-165.48327,0.00016602,2]
[366090860,1750057850036,-564.48,0.00016602,2]
[366090861,1750057850045,-490.0,0.00016602,2]
[366090862,1750057850054,-490.0,0.00016602,2]
[366090863,1750057850063,-165.48327,0.00016602,2]
[366090864,1750057850073,-515.39,0.00016602,2]
[366090865,1750057850082,-1612.27,0.00016602,2]
[366090866,1750057850092,-490.0,0.00016602,2]
[366090867,1750057850101,-1121.33,0.00016602,2]
[366090868,1750057850111,-165.48327,0.00016602,2]
[366090869,1750057850121,-165.48327,0.00016602,2]
[366090870,1750057850130,-490.0,0.00016602,2]
[366090871,1750057850139,-490.0,0.00016602,2]
[366090872,1750057850149,-610.93,0.00016602,2]
[366090873,1750057850159,-490.0,0.00016602,2]
[366090874,1750057850168,-151.0,0.00016602,2]
[366090875,1750057850178,-1042.6,0.00016602,2]
[366090877,1750057850187,-151.0,0.00016602,2]
[366090879,1750057850196,-490.0,0.00016602,2]
[366090881,1750057850204,-490.0,0.00016602,2]
[366090883,1750057850213,-490.0,0.00016602,2]
[366090885,1750057850223,-1424.3,0.00016602,2]
[366090887,1750057850232,-151.0,0.00016602,2]
[366090889,1750057850242,-151.0,0.00016602,2]
[366090891,1750057850251,-490.0,0.00016602,2]
[366090893,1750057850259,-490.0,0.00016602,2]
[366090895,1750057850268,-555.15,0.00016602,2]
[366090897,1750057850277,-726.46,0.00016602,2]
[366090899,1750057850287,-623.89,0.00016602,2]
[366090901,1750057850296,-628.26,0.00016602,2]
[366090902,1750057850305,-490.0,0.00016602,2]
[366090904,1750057850314,-490.0,0.00016602,2]
[366090906,1750057850324,-252.77,0.00016602,2]
[366090909,1750057850334,-1049.67,0.00016602,2]
[366090911,1750057850344,-490.0,0.00016602,2]
[366090912,1750057850355,-213.35412,0.00016602,2]
[366090914,1750057850365,-213.35412,0.00016602,2]
[366090917,1750057850374,-490.0,0.00016602,2]
[366090918,1750057850384,-490.0,0.00016602,2]
[366090920,1750057850394,-781.82,0.00016602,2]
[366090922,1750057850403,-490.0,0.00016602,2]
[366090924,1750057850415,-578.56,0.00016602,2]
[366090926,1750057850425,-1219.79,0.00016602,2]
[366090927,1750057850435,-213.35412,0.00016602,2]
[366090928,1750057850443,-815.04,0.00016602,2]
[366090929,1750057850452,-213.35412,0.00016602,2]
[366090930,1750057850462,-739.47,0.00016602,2]
[366090931,1750057850471,-490.0,0.00016602,2]
[366090932,1750057850481,-217.389415,0.00016602,2]
[366090933,1750057850490,-491.05,0.00016602,2]
[366090934,1750057850500,-151.0,0.00016602,2]
[366090935,1750057850510,-892.95,0.00016602,2]
[366090936,1750057850519,-983.69,0.00016602,2]
[366090937,1750057850529,-908.12,0.00016602,2]
[366090938,1750057850539,-490.0,0.00016602,2]
[366090939,1750057850549,-490.0,0.00016602,2]
[366090940,1750057850558,-675.07,0.00016602,2]
[366090941,1750057850567,-490.0,0.00016602,2]
[366090942,1750057850577,-490.0,0.00016602,2]
[366090943,1750057850587,-490.0,0.00016602,2]
[366090944,1750057850597,-490.0,0.00016602,2]
[366090945,1750057850610,-1569.44,0.00016602,2]
[366090946,1750057850619,-490.0,0.00016602,2]
[366090947,1750057850630,-490.0,0.00016602,2]
[366090948,1750057850639,-490.0,0.00016602,2]
[366090949,1750057850650,-490.0,0.00016602,2]
[366090950,1750057850660,-490.0,0.00016602,2]
[366090951,1750057850670,-839.6,0.00016602,2]
[366090952,1750057850680,-490.0,0.00016602,2]
[366090953,1750057850690,-490.0,0.00016602,2]
[366090954,1750057850699,-539.45,0.00016602,2]
[366090955,1750057850709,-563.05,0.00016602,2]
[366090956,1750057850718,-490.0,0.00016602,2]
[366090957,1750057850727,-490.0,0.00016602,2]
[366090958,1750057850736,-151.0,0.00016602,2]
[366090959,1750057850745,-1389.73,0.00016602,2]
[366090960,1750057850754,-151.0,0.00016602,2]
[366090961,1750057850763,-1035.19,0.00016602,2]
[366090962,1750057850773,-550.63,0.00016602,2]
[366090963,1750057850782,-151.0,0.00016602,2]
[366090964,1750057850792,-275.476253,0.00016602,2]
[366090965,1750057850801,-151.0,0.00016602,2]
[366090966,1750057850811,-490.0,0.00016602,2]
[366090967,1750057850820,-623.61,0.00016602,2]
[366090968,1750057850829,-490.0,0.00016602,2]
[366090969,1750057850839,-1328.81,0.00016602,2]
[366090970,1750057850849,-490.0,0.00016602,2]
[366090971,1750057850858,-1611.51,0.00016602,2]
[366090972,1750057850867,-600.3,0.00016602,2]
[366090973,1750057850877,-151.0,0.00016602,2]
[366090974,1750057850886,-151.0,0.00016602,2]
[366090975,1750057850896,-1059.48,0.00016602,2]
[366090976,1750057850905,-490.0,0.00016602,2]
[366090977,1750057850915,-1156.52,0.00016602,2]
[366090978,1750057850924,-490.0,0.00016602,2]
[366090979,1750057850933,-490.0,0.00016602,2]
[366090980,1750057850944,-1465.78,0.00016602,2]
[366090981,1750057850954,-1660.9,0.00016602,2]
[366090982,1750057850964,-682.64,0.00016602,2]
[366090983,1750057850973,-663.72,0.00016602,2]
[366090984,1750057850982,-587.998569,0.00016602,2]
[366090985,1750057850992,-490.0,0.00016602,2]
[366090986,1750057851002,-685.24,0.00016602,2]
[366090987,1750057851011,-490.0,0.00016602,2]
[366090988,1750057851021,-584.23,0.00016602,2]
[366090989,1750057851030,-649.55,0.00016602,2]
[366090990,1750057851039,-587.998569,0.00016602,2]
[366090991,1750057851049,-565.94,0.00016602,2]
[366090992,1750057851058,-964.13,0.00016602,2]
[366090993,1750057851067,-670.39,0.00016602,2]
[366090994,1750057851076,-490.0,0.00016602,2]
[366090995,1750057851086,-607.08,0.00016602,2]
[366090996,1750057851096,-151.0,0.00016602,2]
[366090997,1750057851105,-490.0,0.00016602,2]
[366090998,1750057851115,-151.0,0.00016602,2]
[366090999,1750057851124,-490.0,0.00016602,2]
[366091000,1750057851133,-631.7,0.00016602,2]
[366091001,1750057851143,-490.0,0.00016602,2]
[366091002,1750057851152,-708.84,0.00016602,2]
[366091003,1750057851162,-490.0,0.00016602,2]
[366091004,1750057851172,-490.0,0.00016602,2]
[366091005,1750057851181,-490.0,0.00016602,2]
[366091006,1750057851191,-490.0,0.00016602,2]
[366091007,1750057851200,-1013.06,0.00016602,2]
[366091008,1750057851209,-1071.69,0.00016602,2]
[366091009,1750057851219,-745.52,0.00016602,2]
[366091010,1750057851228,-606.56,0.00016602,2]
[366091011,1750057851238,-490.0,0.00016602,2]
[366091012,1750057851247,-490.0,0.00016602,2]
[366091013,1750057851257,-490.0,0.00016602,2]
[366091014,1750057851266,-490.0,0.00016602,2]
[366091015,1750057851275,-224.471125,0.00016602,2]
[366091016,1750057851285,-224.471125,0.00016602,2]
[366091017,1750057851294,-1088.09,0.00016602,2]
[366091018,1750057851303,-1498.3,0.00016602,2]
[366091019,1750057851312,-224.471125,0.00016602,2]
[366091020,1750057851322,-224.471125,0.00016602,2]
[366091021,1750057851331,-490.0,0.00016602,2]
[366091022,1750057851340,-490.0,0.00016602,2]
[366091023,1750057851350,-151.0,0.00016602,2]
[366091024,1750057851359,-151.0,0.00016602,2]
[366091025,1750057851369,-519.0,0.00016602,2]
[366091026,1750057851379,-490.0,0.00016602,2]
[366091027,1750057851389,-744.35,0.00016602,2]
[366091028,1750057851399,-490.0,0.00016602,2]
[366091029,1750057851409,-1301.93,0.00016602,2]
[366091030,1750057851419,-151.0,0.00016602,2]
[366091031,1750057851428,-151.932172,0.00016602,2]
[366091032,1750057851438,-490.0,0.00016602,2]
[366091033,1750057851448,-571.48,0.00016602,2]
[366091034,1750057851457,-705.3,0.00016602,2]
[366091035,1750057851467,-490.0,0.00016602,2]
[366091036,1750057851477,-490.0,0.00016602,2]
[366091037,1750057851487,-490.0,0.00016602,2]
[366091038,1750057851496,-490.0,0.00016602,2]
[366091039,1750057851506,-1329.19,0.00016602,2]
[366091040,1750057851517,-592.94,0.00016602,2]
[366091041,1750057851527,-151.0,0.00016602,2]
[366091042,1750057851538,-151.673723,0.00016602,2]
[366091043,1750057851548,-490.0,0.00016602,2]
[366091044,1750057851559,-2265.48,0.00016602,2]
[366091045,1750057851570,-577.84,0.00016602,2]
[366091046,1750057851580,-1344.73,0.00016602,2]
[366091047,1750057851591,-655.92,0.00016602,2]
[366091048,1750057851603,-151.0,0.00016602,2]
[366091049,1750057851613,-880.78,0.00016602,2]
[366091050,1750057851622,-151.0,0.00016602,2]
[366091051,1750057851632,-490.0,0.00016602,2]
[366091052,1750057851643,-1414.55,0.00016602,2]
[366091053,1750057851652,-538.64,0.00016602,2]
[366091054,1750057851662,-436.944486,0.00016602,2]
[366091055,1750057851671,-436.944486,0.00016602,2]
[366091056,1750057851682,-1261.6,0.00016602,2]
[366091057,1750057851691,-151.0,0.00016602,2]
[366091058,1750057851701,-257.712027,0.00016602,2]
[366091059,1750057851710,-911.970134,0.00016602,2]
[366091060,1750057851720,-911.970134,0.00016602,2]
[366091061,1750057851730,-598.42,0.00016602,2]
[366091062,1750057851740,-436.944486,0.00016602,2]
[366091063,1750057851750,-436.944486,0.00016602,2]
[366091064,1750057851760,-1010.23,0.00016602,2]
[366091065,1750057851770,-911.970134,0.00016602,2]
[366091066,1750057851780,-911.970134,0.00016602,2]
[366091067,1750057851790,-151.0,0.00016602,2]
[366091068,1750057851799,-490.0,0.00016602,2]
[366091069,1750057851808,-490.0,0.00016602,2]
[366091070,1750057851817,-151.0,0.00016602,2]
[366091071,1750057851826,-1089.15,0.00016602,2]
[366091072,1750057851836,-161.124481,0.00016602,2]
[366091073,1750057851845,-217.515172,0.00016602,2]
[366091074,1750057851855,-2235.46,0.00016602,2]
[366091075,1750057851864,-490.0,0.00016602,2]
[366091076,1750057851874,-1515.89,0.00016602,2]
[366091077,1750057851883,-490.0,0.00016602,2]
[366091078,1750057851893,-692.43,0.00016602,2]
[366091079,1750057851902,-425.11750743,0.00016602,2]
[366091080,1750057851912,-490.0,0.00016602,2]
[366091081,1750057851922,-151.0,0.00016602,2]
[366091082,1750057851931,-1909.15,0.00016602,2]
[366091083,1750057851942,-1094.96,0.00016602,2]
[366091084,1750057851951,-490.0,0.00016602,2]
[366091085,1750057851960,-490.0,0.00016602,2]
[366091086,1750057851970,-490.0,0.00016602,2]
[366091087,1750057851979,-490.0,0.00016602,2]
[366091088,1750057851988,-490.0,0.00016602,2]
[366091089,1750057851997,-151.0,0.00016602,2]
[366091090,1750057852006,-674.76,0.00016602,2]
[366091091,1750057852016,-649.33,0.00016602,2]
[366091092,1750057852025,-1028.14,0.00016602,2]
[366091093,1750057852034,-490.0,0.00016602,2]
[366091094,1750057852044,-490.0,0.00016602,2]
[366091095,1750057852053,-490.0,0.00016602,2]
[366091096,1750057852063,-151.0,0.00016602,2]
[366091097,1750057852072,-151.0,0.00016602,2]
[366091098,1750057852081,-490.0,0.00016602,2]
[366091099,1750057852091,-490.0,0.00016602,2]
[366091100,1750057852100,-151.0,0.00016602,2]
[366091101,1750057852109,-151.0,0.00016602,2]
[366091102,1750057852118,-151.0,0.00016602,2]
[366091103,1750057852128,-490.0,0.00016602,2]
[366091104,1750057852137,-151.0,0.00016602,2]
[366091105,1750057852147,-560.78,0.00016602,2]
[366091106,1750057852157,-1170.18,0.00016602,2]
[366091107,1750057852166,-522.96,0.00016602,2]
[366091108,1750057852175,-151.0,0.00016602,2]
[366091109,1750057852184,-151.0,0.00016602,2]
[366091110,1750057852193,-490.0,0.00016602,2]
[366091111,1750057852203,-490.0,0.00016602,2]
[366091112,1750057852213,-649.69,0.00016602,2]
[366091113,1750057852222,-490.0,0.00016602,2]
[366091114,1750057852233,-961.81,0.00016602,2]
[366091115,1750057852243,-490.0,0.00016602,2]
[366091116,1750057852253,-604.75,0.00016602,2]
[366091117,1750057852263,-151.0,0.00016602,2]
[366091118,1750057852271,-490.0,0.00016602,2]
[366091119,1750057852280,-490.0,0.00016602,2]
[366091120,1750057852290,-507.66,0.00016602,2]
[366091121,1750057852299,-490.0,0.00016602,2]
[366091122,1750057852308,-490.0,0.00016602,2]
[366091123,1750057852317,-490.0,0.00016602,2]
[366091124,1750057852327,-490.0,0.00016602,2]
[366091125,1750057852337,-642.46,0.00016602,2]
[366091126,1750057852347,-490.0,0.00016602,2]
[366091127,1750057852356,-502.25,0.00016602,2]
[366091128,1750057852366,-1020.35,0.00016602,2]
[366091129,1750057852376,-490.0,0.00016602,2]
[366091130,1750057852385,-1656.82,0.00016602,2]
[366091131,1750057852395,-226.568981,0.00016602,2]
[366091132,1750057852404,-618.63,0.00016602,2]
[366091133,1750057852414,-226.568981,0.00016602,2]
[366091134,1750057852423,-1059.08,0.00016602,2]
[366091135,1750057852432,-490.0,0.00016602,2]
[366091136,1750057852442,-490.0,0.00016602,2]
[366091137,1750057852452,-490.0,0.00016602,2]
[366091138,1750057852462,-226.568981,0.00016602,2]
[366091139,1750057852471,-226.568981,0.00016602,2]
[366091140,1750057852480,-490.0,0.00016602,2]
[366091141,1750057852490,-490.0,0.00016602,2]
[366091142,1750057852499,-534.82,0.00016602,2]
[366091143,1750057852508,-308.538495,0.00016602,2]
[366091144,1750057852518,-308.538495,0.00016602,2]
[366091145,1750057852527,-490.0,0.00016602,2]
[366091146,1750057852536,-1094.95,0.00016602,2]
[366091147,1750057852546,-780.03,0.00016602,2]
[366091148,1750057852556,-151.0,0.00016602,2]
[366091149,1750057852566,-308.538495,0.00016602,2]
[366091150,1750057852576,-151.0,0.00016602,2]
[366091151,1750057852585,-308.538495,0.00016602,2]
[366091152,1750057852595,-490.0,0.00016602,2]
[366091153,1750057852607,-490.0,0.00016602,2]
[366091154,1750057852617,-490.0,0.00016602,2]
[366091155,1750057852628,-490.0,0.00016602,2]
[366091156,1750057852638,-2228.07,0.00016602,2]
[366091157,1750057852650,-490.0,0.00016602,2]
[366091158,1750057852659,-673.03,0.00016602,2]
[366091159,1750057852669,-490.0,0.00016602,2]
[366091160,1750057852680,-997.83,0.00016602,2]
[366091161,1750057852689,-490.0,0.00016602,2]
[366091162,1750057852698,-1005.43,0.00016602,2]
[366091163,1750057852708,-490.0,0.00016602,2]
[366091164,1750057852718,-680.3,0.00016602,2]
[366091165,1750057852727,-490.0,0.00016602,2]
[366091166,1750057852736,-1785.13,0.00016602,2]
[366091167,1750057852746,-490.0,0.00016602,2]
[366091168,1750057852755,-741.06,0.00016602,2]
[366091169,1750057852764,-490.0,0.00016602,2]
[366091170,1750057852774,-572.97,0.00016602,2]
[366091171,1750057852785,-602.11,0.00016602,2]
[366091172,1750057852794,-313.26267249,0.00016602,2]
[366091173,1750057852804,-554.43,0.00016602,2]
[366091174,1750057852814,-818.16,0.00016602,2]
[366091175,1750057852824,-1533.05,0.00016602,2]
[366091176,1750057852833,-490.0,0.00016602,2]
[366091177,1750057852844,-509.96,0.00016602,2]
[366091178,1750057852853,-490.0,0.00016602,2]
[366091179,1750057852863,-1272.34,0.00016602,2]
[366091180,1750057852873,-490.0,0.00016602,2]
[366091181,1750057852882,-490.0,0.00016602,2]
[366091182,1750057852892,-490.0,0.00016602,2]
[366091183,1750057852901,-158.558495,0.00016602,2]
[366091184,1750057852911,-490.0,0.00016602,2]
[366091185,1750057852921,-158.558495,0.00016602,2]
[366091186,1750057852930,-490.0,0.00016602,2]
[366091187,1750057852939,-516.29,0.00016602,2]
[366091188,1750057852949,-541.97,0.00016602,2]
[366091189,1750057852958,-490.0,0.00016602,2]
[366091190,1750057852968,-158.558495,0.00016602,2]
[366091191,1750057852977,-158.558495,0.00016602,2]
[366091192,1750057852987,-615.68,0.00016602,2]
[366091193,1750057852996,-490.0,0.00016602,2]
[366091194,1750057853005,-490.0,0.00016602,2]
[366091195,1750057853015,-499.52,0.00016602,2]
[366091196,1750057853025,-151.0,0.00016602,2]
[366091197,1750057853034,-151.0,0.00016602,2]
[366091198,1750057853044,-856.33,0.00016602,2]
[366091199,1750057853054,-836.33,0.00016602,2]
[366091200,1750057853063,-674.21,0.00016602,2]
[366091201,1750057853072,-490.0,0.00016602,2]
[366091202,1750057853081,-151.0,0.00016602,2]
[366091203,1750057853091,-1081.28,0.00016602,2]
[366091204,1750057853101,-151.0,0.00016602,2]
[366091205,1750057853110,-1046.72,0.00016602,2]
[366091206,1750057853120,-489.45315941,0.00016602,2]
[366091207,1750057853129,-615.1,0.00016602,2]
[366091208,1750057853139,-973.38,0.00016602,2]
[366091209,1750057853148,-2211.27,0.00016602,2]